fUSD/lending_fUSD_20241225
["ID","MTS","AMOUNT","RATE_DAILY","PERIOD"]
[346594854,1735121473950,-500.0,0.00010471,2]
[346594855,1735121473959,-500.0,0.00010471,2]
[346594856,1735121473968,-500.0,0.00010471,2]
[346594857,1735121473978,-500.0,0.00010471,2]
[346594858,1735121473991,-1449.36,0.00010471,2]
[346594859,1735121474001,-500.0,0.00010471,2]
[346594860,1735121474010,-500.0,0.00010471,2]
[346594861,1735121474020,-696.05,0.00010471,2]
[346594862,1735121474029,-500.0,0.00010471,2]
[346594863,1735121474038,-500.0,0.00010471,2]
[346594864,1735121474048,-2347.52,0.00010471,2]
[346594865,1735121474058,-500.0,0.00010471,2]
[346594866,1735121474067,-500.0,0.00010471,2]
[346594867,1735121474076,-1661.27,0.00010471,2]
[346594868,1735121474086,-500.0,0.00010471,2]
[346594869,1735121474095,-2073.3,0.00010471,2]
[346594870,1735121474104,-1568.5,0.00010471,2]
[346594871,1735121474113,-1919.63,0.00010471,2]
[346594872,1735121474123,-505.45148541,0.00010471,2]
[346594873,1735121474132,-500.0,0.00010471,2]
[346594874,1735121474141,-500.0,0.00010471,2]
[346594875,1735121474151,-743.39,0.00010471,2]
[346594876,1735121474160,-500.0,0.00010471,2]
[346594877,1735121474169,-500.0,0.00010471,2]
[346594878,1735121474178,-1714.75,0.00010471,2]
[346594879,1735121474187,-305.4957232,0.00010471,2]
[346594880,1735121474197,-1513.98,0.00010471,2]
[346594881,1735121474206,-541.18,0.00010471,2]
[346594882,1735121474215,-500.0,0.00010471,2]
[346594883,1735121474224,-2338.6,0.00010471,2]
[346594884,1735121474235,-500.0,0.00010471,2]
[346594885,1735121474244,-1225.73,0.00010471,2]
[346594886,1735121474254,-500.0,0.00010471,2]
[346594887,1735121474263,-1375.41,0.00010471,2]
[346594888,1735121474272,-500.0,0.00010471,2]
[346594889,1735121474281,-1366.16,0.00010471,2]
[346594890,1735121474291,-500.0,0.00010471,2]
[346594891,1735121474300,-1639.91,0.00010471,2]
[346594892,1735121474309,-500.0,0.00010471,2]
[346594893,1735121474318,-1955.96,0.00010471,2]
[346594894,1735121474327,-500.0,0.00010471,2]
[346594895,1735121474337,-3499.5,0.00010471,2]
[346594896,1735121474345,-500.0,0.00010471,2]
[346594897,1735121474354,-1188.38,0.00010471,2]
[346594898,1735121474364,-2040.95,0.00010471,2]
[346594899,1735121474373,-500.0,0.00010471,2]
[346594900,1735121474382,-500.0,0.00010471,2]
[346594901,1735121474396,-1523.86,0.00010471,2]
[346594902,1735121474406,-500.0,0.00010471,2]
[346594903,1735121474415,-655.0,0.00010471,2]
[346594904,1735121474425,-1715.1,0.00010471,2]
[346594905,1735121474435,-500.0,0.00010471,2]
[346594906,1735121474444,-828.33,0.00010471,2]
[346594907,1735121474453,-1761.89,0.00010471,2]
[346594908,1735121474463,-500.0,0.00010471,2]
[346594909,1735121474472,-725.82,0.00010471,2]
[346594910,1735121474483,-974.92,0.00010471,2]
[346594911,1735121474492,-500.0,0.00010471,2]
[346594912,1735121474501,-3784.25,0.00010471,2]
[346594913,1735121474510,-500.0,0.00010471,2]
[346594914,1735121474520,-1730.82,0.00010471,2]
[346594915,1735121474530,-2149.07,0.00010471,2]
[346594916,1735121474539,-500.0,0.00010471,2]
[346594917,1735121474548,-500.0,0.00010471,2]
[346594918,1735121474558,-3627.76,0.00010471,2]
[346594919,1735121474568,-500.0,0.00010471,2]
[346594920,1735121474578,-823.52,0.00010471,2]
[346594921,1735121474588,-1031.22,0.00010471,2]
[346594922,1735121474597,-776.3,0.00010471,2]
[346594923,1735121474606,-1075.53,0.00010471,2]
[346594924,1735121474615,-500.0,0.00010471,2]
[346594925,1735121474626,-531.14,0.00010471,2]
[346594926,1735121474635,-1124.68,0.00010471,2]
[346594927,1735121474645,-3422.6,0.00010471,2]
[346594928,1735121474654,-500.0,0.00010471,2]
[346594929,1735121474665,-712.14,0.00010471,2]
[346594930,1735121474675,-1224.79,0.00010471,2]
[346594931,1735121474683,-500.0,0.00010471,2]
[346594932,1735121474692,-1720.58,0.00010471,2]
[346594933,1735121474701,-746.16,0.00010471,2]
[346594934,1735121474711,-360.95256295,0.00010471,2]
[346594935,1735121474720,-500.0,0.00010471,2]
[346594936,1735121474729,-739.25,0.00010471,2]
[346594937,1735121474739,-1480.91,0.00010471,2]
[346594938,1735121474748,-500.0,0.00010471,2]
[346594939,1735121474758,-500.0,0.00010471,2]
[346594940,1735121474767,-769.51,0.00010471,2]
[346594941,1735121474778,-769.51,0.00010471,2]
[346594942,1735121474788,-924.98,0.00010471,2]
[346594943,1735121474799,-500.0,0.00010471,2]
[346594944,1735121474809,-2221.08,0.00010471,2]
[346594945,1735121474819,-500.0,0.00010471,2]
[346594946,1735121474829,-500.0,0.00010471,2]
[346594947,1735121474838,-500.0,0.00010471,2]
[346594948,1735121474847,-977.04,0.00010471,2]
[346594949,1735121474856,-1542.9,0.00010471,2]
[346594950,1735121474866,-520.76,0.00010471,2]
[346594951,1735121474875,-1452.09,0.00010471,2]
[346594952,1735121474885,-500.0,0.00010471,2]
[346594953,1735121474894,-500.0,0.00010471,2]
[346594954,1735121474904,-500.0,0.00010471,2]
[346594955,1735121474913,-1363.46,0.00010471,2]
[346594956,1735121474923,-780.78,0.00010471,2]
[346594957,1735121474933,-500.0,0.00010471,2]
[346594958,1735121474943,-1020.34,0.00010471,2]
[346594959,1735121474952,-500.0,0.00010471,2]
[346594960,1735121474962,-500.0,0.00010471,2]
[346594961,1735121474972,-979.88,0.00010471,2]
[346594962,1735121474983,-500.0,0.00010471,2]
[346594963,1735121474992,-500.0,0.00010471,2]
[346594964,1735121475002,-500.0,0.00010471,2]
[346594965,1735121475011,-656.77,0.00010471,2]
[346594966,1735121475021,-1057.62,0.00010471,2]
[346594967,1735121475030,-528.22077262,0.00010471,2]
[346594968,1735121475041,-500.0,0.00010471,2]
[346594969,1735121475051,-500.0,0.00010471,2]
[346594970,1735121475060,-709.78,0.00010471,2]
[346594971,1735121475070,-500.0,0.00010472,2]
[346594972,1735121475079,-639.34,0.00010472,2]
[346594973,1735121475088,-500.0,0.00010472,2]
[346594974,1735121475098,-500.0,0.00010472,2]
[346594975,1735121475108,-556.08,0.00010472,2]
[346594976,1735121475118,-500.0,0.00010472,2]
[346594977,1735121475128,-598.66,0.00010472,2]
[346594978,1735121475138,-1344.15,0.00010472,2]
[346594979,1735121475147,-500.0,0.00010472,2]
[346594980,1735121475156,-500.0,0.00010472,2]
[346594981,1735121475166,-1016.93,0.00010472,2]
[346594982,1735121475175,-500.46,0.00010472,2]
[346594983,1735121475184,-500.0,0.00010472,2]
[346594984,1735121475194,-1001.48,0.00010472,2]
[346594985,1735121475203,-976.85,0.00010472,2]
[346594986,1735121475211,-500.0,0.00010472,2]
[346594987,1735121475222,-287.43324078,0.00010472,2]
[346594988,1735121475233,-150.0,0.00010472,2]
[346594989,1735121475242,-500.0,0.00010472,2]
[346594990,1735121475252,-980.1,0.00010472,2]
[346594991,1735121475261,-500.0,0.00010472,2]
[346594992,1735121475270,-837.36,0.00010472,2]
[346594993,1735121475279,-568.88,0.00010472,2]
[346594994,1735121475288,-500.0,0.00010472,2]
[346594995,1735121475297,-500.0,0.00010472,2]
[346594996,1735121475307,-500.0,0.00010472,2]
[346594997,1735121475316,-500.0,0.00010472,2]
[346594998,1735121475325,-500.0,0.00010472,2]
[346594999,1735121475335,-500.0,0.00010472,2]
[346595000,1735121475344,-500.0,0.00010472,2]
[346595001,1735121475353,-705.3,0.00010472,2]
[346595002,1735121475362,-500.0,0.00010472,2]
[346595003,1735121475371,-1242.55,0.00010472,2]
[346595004,1735121475380,-500.0,0.00010472,2]
[346595005,1735121475390,-500.0,0.00010472,2]
[346595006,1735121475399,-1248.3,0.00010472,2]
[346595007,1735121475408,-538.95229656,0.00010472,2]
[346595008,1735121475418,-691.21,0.00010472,2]
[346595009,1735121475427,-500.0,0.00010472,2]
[346595010,1735121475436,-1652.81,0.00010472,2]
[346595011,1735121475446,-500.0,0.00010472,2]
[346595012,1735121475455,-538.19485501,0.00010472,2]
[346595013,1735121475466,-584.14,0.00010472,2]
[346595014,1735121475475,-2000.0,0.00010537,2]
[346595015,1735121475487,-200.0,0.00010537,2]
[346595016,1735121475497,-501.34631601,0.00010564,2]
[346595017,1735121475506,-356.63296956,0.00010564,2]
[346595018,1735121475516,-204.07735603,0.00010564,2]
[346595019,1735121475526,-305.56285981,0.00010564,2]
[346595020,1735121475535,-407.09022667,0.00010564,2]
[346595021,1735121475545,-500.0,0.00010564,2]
[346595022,1735121475555,-238.70979583,0.00010564,2]
[346595023,1735121475567,-500.0,0.00010564,2]
[346595024,1735121475577,-429.10429252,0.00010576,2]
[346595025,1735121475588,-1899.0,0.00010577,2]
[346595026,1735121475599,-818.0,0.00010577,2]
[346595027,1735121475609,-3771.0,0.00010577,2]
[346595028,1735121475618,-923.0,0.00010577,2]
[346595029,1735121475628,-1257.667,0.00010577,2]
[346595030,1735121475638,-3684.0,0.00010577,2]
[346595031,1735121475648,-537.617,0.00010577,2]
[346595032,1735121475657,-3888.0,0.00010577,2]
[346595033,1735121475668,-1171.0,0.00010577,2]
[346595034,1735121475678,-150.0,0.00010577,2]
[346595035,1735121475688,-9597.0,0.00010577,2]
[346595036,1735121475697,-500.0,0.00010584,2]
[346595037,1735121475707,-769.51,0.00010599,2]
[346595038,1735121475716,-769.51,0.00010601,2]
[346595039,1735121475726,-769.51,0.00010602,2]
[346595040,1735121475736,-693.15,0.00010604,2]
[346595041,1735121475746,-95538.935616,0.00010605,2]
[346595042,1735121475755,-500.0,0.00010607,2]
[346595043,1735121475764,-2000.0,0.00010642,2]
[346595044,1735121475774,-200.0,0.00010642,2]
[346595045,1735121475783,-1246.76,0.00010742,2]
[346595046,1735121475793,-1033.66,0.00010742,2]
[346595047,1735121475803,-500.0,0.00010742,2]
[346595048,1735121475812,-1172.34,0.00010742,2]
[346595049,1735121475822,-694.38,0.00010742,2]
[346595050,1735121475831,-881.0,0.00010742,2]
[346595051,1735121475841,-599.08,0.00010742,2]
[346595052,1735121475850,-13394.14,0.00010742,2]
[346595053,1735121475860,-2786.16,0.00010742,2]
[346595054,1735121475870,-1903.24,0.00010742,2]
[346595055,1735121475879,-1462.27,0.00010742,2]
[346595056,1735121475888,-2074.85,0.00010742,2]
[346595057,1735121475897,-4376.75,0.00010742,2]
[346595058,1735121475907,-756.55,0.00010742,2]
[346595059,1735121475916,-3657.39,0.00010742,2]
[346595060,1735121475926,-4051.51,0.00010742,2]
[346595061,1735121475934,-1906.69,0.00010742,2]
[346595062,1735121475944,-1159.21,0.00010742,2]
[346595063,1735121475953,-516.16,0.00010742,2]
[346595064,1735121475962,-11085.49,0.00010742,2]
[346595065,1735121475971,-508.06,0.00010742,2]
[346595066,1735121475980,-1283.63,0.00010742,2]
[346595067,1735121475990,-500.0,0.00010742,2]
[346595068,1735121476000,-2472.66,0.00010742,2]
[346595069,1735121476010,-1443.23,0.00010742,2]
[346595070,1735121476020,-1540.35,0.00010742,2]
[346595071,1735121476030,-500.0,0.00010742,2]
[346595072,1735121476040,-870.83,0.00010742,2]
[346595073,1735121476051,-1453.43,0.00010742,2]
[346595074,1735121476061,-1025.38,0.00010742,2]
[346595075,1735121476071,-573.82197928,0.00010742,2]
[346595076,1735121476080,-2432.06,0.00010742,2]
[346595077,1735121476091,-500.0,0.00010743,2]
[346595078,1735121476101,-500.0,0.00010743,2]
[346595079,1735121476110,-500.0,0.00010743,2]
[346595080,1735121476121,-500.0,0.00010743,2]
[346595081,1735121476131,-737.01,0.00010743,2]
[346595082,1735121476142,-500.0,0.00010743,2]
[346595083,1735121476150,-500.0,0.00010743,2]
[346595084,1735121476161,-500.0,0.00010743,2]
[346595085,1735121476171,-500.0,0.00010743,2]
[346595086,1735121476182,-500.0,0.00010743,2]
[346595087,1735121476191,-837.04,0.00010743,2]
[346595088,1735121476202,-531.4,0.00010743,2]
[346595089,1735121476212,-500.0,0.00010743,2]
[346595090,1735121476223,-599.92,0.00010743,2]
[346595091,1735121476232,-1324.48,0.00010743,2]
[346595092,1735121476242,-500.0,0.00010743,2]
[346595093,1735121476251,-542.46,0.00010743,2]
[346595094,1735121476260,-500.0,0.00010743,2]
[346595095,1735121476270,-500.0,0.00010743,2]
[346595096,1735121476279,-988.6,0.00010743,2]
[346595097,1735121476288,-729.38,0.00010743,2]
[346595098,1735121476298,-578.71,0.00010743,2]
[346595099,1735121476308,-500.0,0.00010743,2]
[346595100,1735121476319,-686.11,0.00010743,2]
[346595101,1735121476328,-500.0,0.00010743,2]
[346595102,1735121476337,-868.17,0.00010743,2]
[346595103,1735121476347,-500.0,0.00010743,2]
[346595104,1735121476357,-500.0,0.00010743,2]
[346595105,1735121476366,-554.5,0.00010743,2]
[346595106,1735121476375,-500.0,0.00010743,2]
[346595107,1735121476385,-534.88583677,0.00010743,2]
[346595108,1735121476394,-937.72,0.00010743,2]
[346595109,1735121476404,-500.0,0.00010743,2]
[346595110,1735121476413,-500.0,0.00010743,2]
[346595111,1735121476422,-500.0,0.00010743,2]
[346595112,1735121476431,-500.0,0.00010743,2]
[346595113,1735121476440,-500.0,0.00010743,2]
[346595114,1735121476449,-500.0,0.00010743,2]
[346595115,1735121476628,-500.0,0.00010743,2]
[346595116,1735121476637,-500.0,0.00010743,2]
[346595117,1735121476646,-1147.25,0.00010743,2]
[346595118,1735121476656,-1955.227982,0.00010743,2]
[346595119,1735121476666,-1918.8046,0.00010743,2]
[346595120,1735121476675,-500.0,0.00010743,2]
[346595121,1735121476684,-968.95,0.00010743,2]
[346595122,1735121476694,-965.34,0.00010743,2]
[346595123,1735121476703,-500.0,0.00010743,2]
[346595124,1735121476712,-580.71,0.00010743,2]
[346595125,1735121476721,-500.0,0.00010743,2]
[346595126,1735121476730,-500.0,0.00010743,2]
[346595127,1735121476741,-1001.52,0.00010743,2]
[346595128,1735121476750,-562.22,0.00010743,2]
[346595129,1735121476759,-500.0,0.00010743,2]
[346595130,1735121476769,-500.0,0.00010743,2]
[346595131,1735121476778,-500.0,0.00010743,2]
[346595132,1735121476787,-500.0,0.00010743,2]
[346595133,1735121476797,-500.0,0.00010743,2]
[346595134,1735121476806,-500.0,0.00010743,2]
[346595135,1735121476816,-500.0,0.00010743,2]
[346595136,1735121476825,-500.0,0.00010743,2]
[346595137,1735121476834,-500.0,0.00010743,2]
[346595138,1735121476843,-500.0,0.00010743,2]
[346595139,1735121476853,-408.76228171,0.00010743,2]
[346595140,1735121476862,-613.96,0.00010743,2]
[346595141,1735121476872,-567.43,0.00010743,2]
[346595142,1735121476881,-542.45,0.00010743,2]
[346595143,1735121476890,-525.92,0.00010743,2]
[346595144,1735121476900,-500.0,0.00010743,2]
[346595145,1735121476909,-500.0,0.00010743,2]
[346595146,1735121476918,-1441.38,0.00010743,2]
[346595147,1735121476928,-598.39,0.00010743,2]
[346595148,1735121476937,-500.0,0.00010743,2]
[346595149,1735121476946,-500.0,0.00010743,2]
[346595150,1735121476955,-695.72,0.00010743,2]
[346595151,1735121476964,-500.0,0.00010743,2]
[346595152,1735121476974,-500.0,0.00010743,2]
[346595153,1735121476984,-500.0,0.00010743,2]
[346595154,1735121476993,-500.0,0.00010743,2]
[346595155,1735121477002,-1567.56,0.00010743,2]
[346595156,1735121477011,-500.0,0.00010743,2]
[346595157,1735121477020,-563.82,0.00010743,2]
[346595158,1735121477030,-500.0,0.00010743,2]
[346595159,1735121477042,-1432.67,0.00010743,2]
[346595160,1735121477051,-830.1,0.00010743,2]
[346595161,1735121477061,-500.0,0.00010743,2]
[346595162,1735121477070,-714.64,0.00010743,2]
[346595163,1735121477080,-781.04,0.00010743,2]
[346595164,1735121477089,-937.79,0.00010743,2]
[346595165,1735121477099,-1069.58,0.00010743,2]
[346595166,1735121477109,-507.47,0.00010743,2]
[346595167,1735121477118,-886.64,0.00010743,2]
[346595168,1735121477127,-500.0,0.00010743,2]
[346595169,1735121477136,-603.43,0.00010743,2]
[346595170,1735121477145,-500.0,0.00010743,2]
[346595171,1735121477155,-500.0,0.00010743,2]
[346595172,1735121477166,-500.0,0.00010743,2]
[346595173,1735121477176,-723.44,0.00010743,2]
[346595174,1735121477187,-1652.33,0.00010743,2]
[346595175,1735121477196,-1173.57,0.00010743,2]
[346595176,1735121477205,-500.0,0.00010743,2]
[346595177,1735121477216,-1573.68,0.00010743,2]
[346595178,1735121477225,-500.0,0.00010743,2]
[346595179,1735121477235,-500.0,0.00010743,2]
[346595180,1735121477244,-777.71,0.00010743,2]
[346595181,1735121477253,-500.0,0.00010743,2]
[346595182,1735121477263,-1198.76,0.00010743,2]
[346595183,1735121477271,-500.0,0.00010743,2]
[346595184,1735121477281,-583.59,0.00010743,2]
[346595185,1735121477290,-500.0,0.00010743,2]
[346595186,1735121477300,-597.89,0.00010743,2]
[346595187,1735121477310,-500.0,0.00010743,2]
[346595188,1735121477319,-500.0,0.00010743,2]
[346595189,1735121477328,-500.0,0.00010743,2]
[346595190,1735121477338,-500.0,0.00010743,2]
[346595191,1735121477347,-500.0,0.00010743,2]
[346595192,1735121477356,-681.28,0.00010743,2]
[346595193,1735121477365,-500.0,0.00010743,2]
[346595194,1735121477374,-610.42,0.00010743,2]
[346595195,1735121477383,-500.0,0.00010743,2]
[346595196,1735121477393,-500.0,0.00010743,2]
[346595197,1735121477401,-500.0,0.00010743,2]
[346595198,1735121477410,-525.16,0.00010743,2]
[346595199,1735121477420,-770.41,0.00010743,2]
[346595200,1735121477429,-1372.33,0.00010743,2]
[346595201,1735121477438,-500.0,0.00010743,2]
[346595202,1735121477447,-500.0,0.00010743,2]
[346595203,1735121477458,-500.0,0.00010743,2]
[346595204,1735121477467,-866.09,0.00010743,2]
[346595205,1735121477476,-500.0,0.00010743,2]
[346595206,1735121477485,-500.0,0.00010743,2]
[346595207,1735121477494,-500.0,0.00010743,2]
[346595208,1735121477504,-1072.75,0.00010743,2]
[346595209,1735121477513,-786.63,0.00010743,2]
[346595210,1735121477522,-1416.71,0.00010743,2]
[346595211,1735121477531,-981.74,0.00010743,2]
[346595212,1735121477540,-763.42,0.00010743,2]
[346595213,1735121477549,-884.95,0.00010743,2]
[346595214,1735121477558,-558.81,0.00010743,2]
[346595215,1735121477567,-500.0,0.00010743,2]
[346595216,1735121477577,-500.0,0.00010743,2]
[346595217,1735121477588,-932.19,0.00010743,2]
[346595218,1735121477598,-3266.04,0.00010743,2]
[346595219,1735121477607,-782.62,0.00010743,2]
[346595220,1735121477616,-1457.68,0.00010743,2]
[346595221,1735121477627,-662.95,0.00010743,2]
[346595222,1735121477636,-2774.33,0.00010743,2]
[346595223,1735121477645,-500.0,0.00010743,2]
[346595224,1735121477654,-490.28906968,0.00010743,2]
[346595225,1735121477663,-1032.51,0.00010743,2]
[346595226,1735121477673,-614.33,0.00010743,2]
[346595227,1735121477683,-868.66,0.00010743,2]
[346595228,1735121477692,-1686.95,0.00010743,2]
[346595229,1735121477701,-947.76,0.00010743,2]
[346595230,1735121477710,-500.0,0.00010743,2]
[346595231,1735121477719,-2625.49,0.00010743,2]
[346595232,1735121477728,-879.26,0.00010743,2]
[346595233,1735121477738,-1120.56,0.00010743,2]
[346595234,1735121477748,-651.07,0.00010743,2]
[346595235,1735121477758,-9705.56,0.00010743,2]
[346595236,1735121477767,-693.15,0.00010743,2]
[346595237,1735121477777,-500.0,0.00010743,2]
[346595238,1735121477786,-2950.64,0.00010743,2]
[346595239,1735121477796,-1954.16,0.00010743,2]
[346595240,1735121477805,-1521.45,0.00010743,2]
[346595241,1735121477814,-602.35,0.00010743,2]
[346595242,1735121477824,-500.0,0.00010743,2]
[346595243,1735121477833,-5241.9,0.00010743,2]
[346595244,1735121477842,-663.43,0.00010743,2]
[346595245,1735121477852,-15069.27,0.00010743,2]
[346595246,1735121477861,-500.0,0.00010743,2]
[346595247,1735121477870,-1726.83,0.00010743,2]
[346595248,1735121477879,-500.0,0.00010743,2]
[346595249,1735121477889,-1104.72,0.00010743,2]
[346595250,1735121477898,-1127.64,0.00010743,2]
[346595251,1735121477908,-534.94,0.00010743,2]
[346595252,1735121477918,-1026.79,0.00010743,2]
[346595253,1735121477927,-896.54,0.00010743,2]
[346595254,1735121477936,-2966.46,0.00010743,2]
[346595255,1735121477945,-500.0,0.00010743,2]
[346595256,1735121477954,-1546.77,0.00010743,2]
[346595257,1735121477963,-500.0,0.00010743,2]
[346595258,1735121477973,-1386.75,0.00010743,2]
[346595259,1735121477982,-607.57,0.00010743,2]
[346595260,1735121477992,-674.58,0.00010743,2]
[346595261,1735121478001,-500.0,0.00010743,2]
[346595262,1735121478011,-1679.97,0.00010743,2]
[346595263,1735121478020,-1492.35,0.00010743,2]
[346595264,1735121478029,-13122.69,0.00010743,2]
[346595265,1735121478039,-3728.81,0.00010743,2]
[346595266,1735121478048,-561.67,0.00010743,2]
[346595267,1735121478057,-500.0,0.00010743,2]
[346595268,1735121478066,-1456.69,0.00010743,2]
[346595269,1735121478076,-500.0,0.00010743,2]
[346595270,1735121478085,-734.46,0.00010743,2]
[346595271,1735121478095,-392.03266254,0.00010743,2]
[346595272,1735121478105,-3844.01,0.00010743,2]
[346595273,1735121478114,-1852.35,0.00010743,2]
[346595274,1735121478124,-949.27,0.00010743,2]
[346595275,1735121478133,-500.0,0.00010743,2]
[346595276,1735121478143,-5197.85,0.00010743,2]
[346595277,1735121478152,-1573.82,0.00010743,2]
[346595278,1735121478161,-500.0,0.00010743,2]
[346595279,1735121478170,-597.94,0.00010743,2]
[346595280,1735121478180,-9501.48,0.00010743,2]
[346595281,1735121478189,-537.41,0.00010743,2]
[346595282,1735121478198,-500.0,0.00010743,2]
[346595283,1735121478207,-500.0,0.00010743,2]
[346595284,1735121478216,-500.0,0.00010743,2]
[346595285,1735121478225,-3882.94,0.00010743,2]
[346595286,1735121478234,-1703.23,0.00010743,2]
[346595287,1735121478244,-6734.4,0.00010743,2]
[346595288,1735121478253,-716.78,0.00010743,2]
[346595289,1735121478262,-5704.66,0.00010743,2]
[346595290,1735121478272,-2327.15,0.00010743,2]
[346595291,1735121478280,-500.0,0.00010743,2]
[346595292,1735121478290,-1699.39,0.00010743,2]
[346595293,1735121478299,-940.67,0.00010743,2]
[346595294,1735121478308,-2729.98,0.00010743,2]
[346595295,1735121478318,-500.0,0.00010743,2]
[346595296,1735121478327,-803.12,0.00010743,2]
[346595297,1735121478337,-843.37,0.00010743,2]
[346595298,1735121478347,-784.4,0.00010743,2]
[346595299,1735121478356,-10516.12,0.00010743,2]
[346595300,1735121478367,-500.0,0.00010743,2]
[346595301,1735121478376,-4917.21,0.00010743,2]
[346595302,1735121478385,-2540.72,0.00010743,2]
[346595303,1735121478395,-1121.6,0.00010743,2]
[346595304,1735121478404,-500.0,0.00010743,2]
[346595305,1735121478413,-5236.29,0.00010743,2]
[346595306,1735121478427,-1361.9,0.00010743,2]
[346595307,1735121478436,-4545.88,0.00010743,2]
[346595308,1735121478445,-6600.15,0.00010743,2]
[346595309,1735121478454,-1071.33,0.00010743,2]
[346595310,1735121478463,-500.0,0.00010743,2]
[346595311,1735121478472,-500.0,0.00010743,2]
[346595312,1735121478482,-500.0,0.00010743,2]
[346595313,1735121478492,-595.64,0.00010743,2]
[346595314,1735121478502,-6384.79,0.00010743,2]
[346595315,1735121478511,-1995.53,0.00010743,2]
[346595316,1735121478520,-500.0,0.00010743,2]
[346595317,1735121478529,-16588.38,0.00010743,2]
[346595318,1735121478539,-500.0,0.00010743,2]
[346595319,1735121478548,-500.0,0.00010743,2]
[346595320,1735121478558,-479.44971031,0.00010743,2]
[346595321,1735121478568,-500.0,0.00010743,2]
[346595322,1735121478578,-3184.37,0.00010743,2]
[346595323,1735121478590,-500.0,0.00010743,2]
[346595324,1735121478599,-1137.56,0.00010743,2]
[346595325,1735121478608,-1693.06,0.00010743,2]
[346595326,1735121478618,-500.0,0.00010743,2]
[346595327,1735121478627,-500.0,0.00010743,2]
[346595328,1735121478639,-7562.77,0.00010743,2]
[346595329,1735121478648,-1211.06,0.00010743,2]
[346595330,1735121478658,-500.0,0.00010743,2]
[346595331,1735121478667,-2327.36,0.00010743,2]
[346595332,1735121478677,-2177.93,0.00010743,2]
[346595333,1735121478686,-500.0,0.00010743,2]
[346595334,1735121478695,-1704.0,0.00010743,2]
[346595335,1735121478704,-500.0,0.00010743,2]
[346595336,1735121478713,-560.2019792,0.00010743,2]
[346595337,1735121478722,-829.17,0.00010743,2]
[346595338,1735121478731,-1421.94,0.00010743,2]
[346595339,1735121478742,-1717.24,0.00010743,2]
[346595340,1735121478752,-6920.22,0.00010743,2]
[346595341,1735121478761,-1496.25,0.00010743,2]
[346595342,1735121478770,-500.0,0.00010743,2]
[346595343,1735121478779,-1317.1,0.00010743,2]
[346595344,1735121478789,-1085.37,0.00010743,2]
[346595345,1735121478798,-511.7,0.00010743,2]
[346595346,1735121478807,-1025.95,0.00010743,2]
[346595347,1735121478816,-812.72,0.00010743,2]
[346595348,1735121478825,-1419.97,0.00010743,2]
[346595349,1735121478834,-869.54,0.00010743,2]
[346595350,1735121478843,-500.0,0.00010743,2]
[346595351,1735121478852,-3301.81,0.00010743,2]
[346595352,1735121478861,-1612.21,0.00010743,2]
[346595353,1735121478871,-500.0,0.00010743,2]